fUST/lending_fUST_20250207
["ID","MTS","AMOUNT","RATE_DAILY","PERIOD"]
[351968818,1738864244997,-1269.49,0.0001452,2]
[351968819,1738864245012,-228.279158,0.0001452,2]
[351968821,1738864245023,-151.0,0.0001452,2]
[351968824,1738864245033,-500.0,0.0001452,2]
[351968826,1738864245044,-1189.73,0.0001452,2]
[351968828,1738864245055,-949.91,0.0001452,2]
[351968829,1738864245065,-10431.68,0.0001452,2]
[351968831,1738864245077,-151.0,0.0001452,2]
[351968834,1738864245095,-741.18,0.0001452,2]
[351968836,1738864245105,-500.0,0.0001452,2]
[351968838,1738864245116,-237.697782,0.0001452,2]
[351968840,1738864245128,-151.0,0.0001452,2]
[351968842,1738864245139,-151.0,0.0001452,2]
[351968844,1738864245149,-151.0,0.0001452,2]
[351968846,1738864245159,-237.697782,0.0001452,2]
[351968848,1738864245169,-151.0,0.0001452,2]
[351968850,1738864245179,-873.77,0.0001452,2]
[351968852,1738864245189,-151.0,0.0001452,2]
[351968854,1738864245198,-500.0,0.0001452,2]
[351968856,1738864245209,-151.0,0.0001452,2]
[351968858,1738864245219,-151.0,0.0001452,2]
[351968860,1738864245229,-151.0,0.0001452,2]
[351968862,1738864245240,-834.87,0.0001452,2]
[351968864,1738864245250,-1195.13,0.0001452,2]
[351968866,1738864245260,-1791.14,0.0001452,2]
[351968868,1738864245270,-151.0,0.0001452,2]
[351968870,1738864245279,-365.23312517,0.0001452,2]
[351968872,1738864245289,-521.61,0.0001452,2]
[351968874,1738864245299,-595.05,0.0001452,2]
[351968876,1738864245308,-500.0,0.0001452,2]
[351968878,1738864245318,-1976.15,0.0001452,2]
[351968880,1738864245328,-1190.75,0.0001452,2]
[351968882,1738864245341,-500.0,0.0001452,2]
[351968884,1738864245351,-4765.35,0.0001452,2]
[351968886,1738864245361,-652.34,0.0001452,2]
[351968888,1738864245371,-500.0,0.0001452,2]
[351968890,1738864245380,-1041.25,0.0001452,2]
[351968892,1738864245390,-1847.74,0.0001452,2]
[351968894,1738864245400,-500.0,0.0001452,2]
[351968896,1738864245409,-500.0,0.0001452,2]
[351968897,1738864245419,-288.24119054,0.0001452,2]
[351968898,1738864245429,-915.03,0.0001452,2]
[351968899,1738864245438,-2060.75,0.0001452,2]
[351968901,1738864245448,-738.04,0.0001452,2]
[351968902,1738864245458,-798.43,0.0001452,2]
[351968903,1738864245468,-1875.02,0.0001452,2]
[351968904,1738864245478,-500.0,0.0001452,2]
[351968905,1738864245488,-547.15,0.0001452,2]
[351968906,1738864245497,-202.0,0.00014541,2]
[351968907,1738864245508,-202.0,0.00014541,2]
[351968908,1738864245517,-202.0,0.00014541,2]
[351968910,1738864245527,-202.0,0.00014541,2]
[351968912,1738864245537,-202.0,0.00014541,2]
[351968914,1738864245546,-202.0,0.00014541,2]
[351968916,1738864245556,-202.0,0.00014541,2]
[351968918,1738864245565,-202.0,0.00014541,2]
[351968920,1738864245575,-202.0,0.00014541,2]
[351968922,1738864245587,-202.0,0.00014541,2]
[351968924,1738864245596,-202.0,0.00014541,2]
[351968926,1738864245606,-202.0,0.00014541,2]
[351968928,1738864245615,-202.0,0.00014541,2]
[351968930,1738864245624,-202.0,0.00014541,2]
[351968932,1738864245634,-328.0,0.00014542,2]
[351968934,1738864245644,-328.0,0.00014542,2]
[351968936,1738864245654,-328.0,0.00014542,2]
[351968938,1738864245663,-328.0,0.00014542,2]
[351968941,1738864245673,-328.0,0.00014542,2]
[351968943,1738864245682,-328.0,0.00014542,2]
[351968945,1738864245691,-328.0,0.00014542,2]
[351968947,1738864245701,-328.0,0.00014542,2]
[351968949,1738864245711,-328.0,0.00014542,2]
[351968951,1738864245720,-328.0,0.00014542,2]
[351968953,1738864245730,-328.0,0.00014542,2]
[351968955,1738864245740,-328.0,0.00014542,2]
[351968957,1738864245750,-328.0,0.00014542,2]
[351968959,1738864245760,-328.0,0.00014542,2]
[351968961,1738864245770,-202.0,0.00014546,2]
[351968963,1738864245780,-202.0,0.00014546,2]
[351968966,1738864245790,-202.0,0.00014546,2]
[351968968,1738864245799,-202.0,0.00014546,2]
[351968970,1738864245809,-202.0,0.00014546,2]
[351968972,1738864245819,-202.0,0.00014546,2]
[351968974,1738864245828,-202.0,0.00014546,2]
[351968976,1738864245842,-202.0,0.00014546,2]
[351968978,1738864245851,-202.0,0.00014546,2]
[351968980,1738864245860,-202.0,0.00014546,2]
[351968982,1738864245870,-202.0,0.00014546,2]
[351968984,1738864245879,-202.0,0.00014546,2]
[351968986,1738864245889,-202.0,0.00014546,2]
[351968988,1738864245899,-151.0,0.00014546,2]
[351968990,1738864245908,-151.0,0.00014546,2]
[351968992,1738864245918,-328.0,0.00014546,2]
[351968994,1738864245927,-328.0,0.00014546,2]
[351968996,1738864245937,-328.0,0.00014546,2]
[351968997,1738864245947,-328.0,0.00014546,2]
[351968998,1738864245957,-328.0,0.00014546,2]
[351968999,1738864245966,-328.0,0.00014546,2]
[351969000,1738864245976,-328.0,0.00014546,2]
[351969001,1738864245986,-328.0,0.00014546,2]
[351969002,1738864245996,-328.0,0.00014546,2]
[351969003,1738864246006,-328.0,0.00014546,2]
[351969004,1738864246018,-328.0,0.00014546,2]
[351969005,1738864246028,-328.0,0.00014546,2]
[351969006,1738864246037,-328.0,0.00014546,2]
[351969007,1738864246047,-2500.0,0.00014573,2]
[351969008,1738864246057,-2500.0,0.00014582,2]
[351969010,1738864246067,-151.0,0.00014585,2]
[351969012,1738864246077,-151.0,0.00014585,2]
[351969014,1738864246092,-2500.0,0.00014591,2]
[351969016,1738864246102,-12.93756161,0.000146,2]
[351969019,1738864246120,-567.36061005,0.000146,2]
[351969071,1738864246624,-1919.70182834,0.000146,2]
[351969073,1738864246634,-164.363906,0.00014604,2]
[351969075,1738864246643,-2500.0,0.00014609,2]
[351969077,1738864246653,-1200.0,0.00014609,2]
[351969079,1738864246662,-500.0,0.00014609,2]
[351969081,1738864246671,-2500.0,0.00014617,2]
[351969083,1738864246681,-151.0,0.00014618,2]
[351969085,1738864246690,-151.0,0.00014618,2]
[351969087,1738864246699,-151.0,0.00014618,2]
[351969089,1738864246709,-151.0,0.00014618,2]
[351969091,1738864246719,-192.27388,0.00014618,2]
[351969093,1738864246728,-192.27388,0.00014618,2]
[351969095,1738864246737,-151.0,0.00014618,2]
[351969097,1738864246747,-695.577985,0.00014618,2]
[351969099,1738864246756,-695.577985,0.00014618,2]
[351969101,1738864246766,-151.0,0.00014618,2]
[351969103,1738864246776,-2500.0,0.00014626,2]
[351969105,1738864246785,-2500.0,0.00014635,2]
[351969107,1738864246795,-1400.36334571,0.00014635,2]
[351969109,1738864246804,-500.0,0.00014657,2]
[351969111,1738864246814,-500.0,0.00014657,2]
[351969113,1738864246824,-945.99377187,0.00014657,2]
[351969115,1738864246836,-150.2,0.00014657,2]
[351969117,1738864246846,-150.2,0.00014657,2]
[351969119,1738864246856,-151.74645934,0.00014657,2]
[351969121,1738864246866,-215.43344732,0.00014657,2]
[351969123,1738864246876,-500.0,0.00014657,2]
[351969125,1738864246886,-500.0,0.00014657,2]
[351969127,1738864246897,-217.42964318,0.00014657,2]
[351969129,1738864246907,-782.0,0.00014657,2]
[351969131,1738864246917,-749.82228066,0.00014657,2]
[351969133,1738864246927,-507.0,0.00014657,2]
[351969135,1738864246937,-500.0,0.00014657,2]
[351969137,1738864246948,-974.5327871,0.00014657,2]
[351969139,1738864246959,-500.0,0.00014657,2]
[351969142,1738864246969,-151.0,0.00014657,2]
[351969144,1738864246979,-500.0,0.00014657,2]
[351969146,1738864246988,-509.20543763,0.00014657,2]
[351969148,1738864247003,-7.05456237,0.00014657,2]
[351969150,1738864247012,-500.0,0.00014657,2]
[351969152,1738864247022,-500.0,0.00014657,2]
[351969154,1738864247032,-500.0,0.00014657,2]
[351969156,1738864247043,-500.0,0.00014657,2]
[351969158,1738864247053,-500.0,0.00014657,2]
[351969160,1738864247062,-793.08,0.00014657,2]
[351969161,1738864247071,-812.18,0.00014657,2]
[351969163,1738864247081,-500.0,0.00014657,2]
[351969165,1738864247093,-626.46,0.00014657,2]
[351969167,1738864247103,-730.97,0.00014657,2]
[351969169,1738864247112,-500.0,0.00014657,2]
[351969171,1738864247123,-500.0,0.00014657,2]
[351969173,1738864247133,-500.0,0.00014657,2]
[351969175,1738864247142,-500.0,0.00014657,2]
[351969177,1738864247151,-768.08,0.00014657,2]
[351969179,1738864247161,-500.0,0.00014657,2]
[351969181,1738864247172,-500.0,0.00014657,2]
[351969183,1738864247181,-637.89,0.00014657,2]
[351969185,1738864247191,-500.0,0.00014657,2]
[351969187,1738864247200,-500.0,0.00014657,2]
[351969189,1738864247209,-715.54,0.00014657,2]
[351969191,1738864247219,-500.0,0.00014657,2]
[351969193,1738864247228,-500.0,0.00014657,2]
[351969195,1738864247238,-2368.84,0.00014657,2]
[351969197,1738864247248,-960.76,0.00014657,2]
[351969199,1738864247258,-863.94,0.00014657,2]
[351969200,1738864247267,-500.0,0.00014657,2]
[351969201,1738864247276,-907.18,0.00014657,2]
[351969202,1738864247286,-2976.73,0.00014657,2]
[351969203,1738864247295,-390.02277158,0.00014657,2]
[351969204,1738864247308,-3502.93772859,0.00014657,2]
[351969206,1738864247320,-2625.03595768,0.00014657,2]
[351969208,1738864247332,-1826.01354215,0.00014657,2]
[351969210,1738864247348,-3344.81,0.00014657,2]
[351969212,1738864247358,-151.0,0.00014657,2]
[351969214,1738864247367,-743.67,0.00014657,2]
[351969217,1738864247378,-597.04,0.00014657,2]
[351969219,1738864247388,-795.77,0.00014657,2]
[351969221,1738864247397,-6145.57687317,0.00014657,2]
[351969281,1738864247981,-500.0,0.00013698,2]
[351969283,1738864247991,-500.0,0.00013698,2]
[351969285,1738864248001,-256.20510976,0.00013698,2]
[351970735,1738864447616,220.0,0.00018,120]
[351970736,1738864469233,200.0,0.00019,120]
[351970737,1738864480697,500.0,0.00019,120]
[351970739,1738864495870,500.0,0.00019,120]
[351970740,1738864799984,5071.69,0.00014,30]
[351970741,1738865151120,-206.8180615,0.00012766,2]
[351970742,1738865151141,-128.31928115,0.00012921,2]
[351970743,1738865249100,-186.37555625,0.00012921,2]
[351970744,1738865249128,-14.59320265,0.00012998,2]
[351970794,1738865432501,-500.0,0.00012999,2]
[351970796,1738865432511,-500.0,0.00012999,2]
[351970798,1738865432523,-500.0,0.00012999,2]
[351970801,1738865432532,-446.21750043,0.00012999,2]
[351970803,1738865432542,-300.0,0.00012999,2]
[351970804,1738865432552,-176.23348539,0.00012999,2]
[351970806,1738865432561,-500.0,0.00012999,2]
[351970807,1738865432572,-252.39266043,0.00012999,2]
[351970809,1738865432581,-99.16922857,0.00013,2]
[351970812,1738865432605,-100.83077143,0.00013,2]
[351970814,1738865432614,-163679.32955912,0.00013,2]
[351970816,1738865432623,-55915.23609852,0.00013,2]
[351970818,1738865432635,-3213.08573571,0.00013,2]
[351970820,1738865432646,-8835.12372946,0.00013,2]
[351970823,1738865432658,-14518.8,0.00013,2]
[351970825,1738865432669,-515.3,0.00013,2]
[351970827,1738865432682,-4942.40862974,0.00013,2]
[351970830,1738865432694,-1956.2,0.00013,2]
[351970833,1738865432706,-1343.12476394,0.00013,2]
[351971364,1738865438368,-6735.99270631,0.00013,2]
[351971371,1738865438428,-706043.90511649,0.00013,2]
[351971373,1738865438439,-600.0,0.0001315,2]
[351971375,1738865438449,-1537.9008159,0.00013271,2]
[351971377,1738865438460,-318.66250715,0.00013511,2]
[351971379,1738865438471,-2452.89455908,0.00013682,2]
[351971381,1738865438481,-500.0,0.00013698,2]
[351971383,1738865438491,-500.43244295,0.00013698,2]
[351971385,1738865438501,-500.0,0.00013698,2]
[351971387,1738865438510,-500.0,0.00013698,2]
[351971389,1738865438523,-500.0,0.00013698,2]
[351971391,1738865438532,-500.0,0.00013698,2]
[351971394,1738865438543,-500.0,0.00013698,2]
[351971395,1738865438553,-500.0,0.00013698,2]
[351971398,1738865438562,-500.0,0.00013698,2]
[351971400,1738865438572,-507.86397755,0.00013698,2]
[351971401,1738865438581,-500.0,0.00013698,2]
[351971404,1738865438592,-500.0,0.00013698,2]
[351971405,1738865438602,-500.0,0.00013698,2]
[351971407,1738865438612,-510.90131772,0.00013698,2]
[351971410,1738865438622,-500.0,0.00013698,2]
[351971412,1738865438631,-500.0,0.00013698,2]
[351971414,1738865438641,-500.0,0.00013698,2]
[351971415,1738865438651,-500.0,0.00013698,2]
[351971417,1738865438660,-500.0,0.00013698,2]
[351971419,1738865438670,-500.0,0.00013698,2]
[351971421,1738865438679,-500.0,0.00013698,2]
[351971423,1738865438690,-500.0,0.00013698,2]
[351971425,1738865438699,-500.0,0.00013698,2]
[351971427,1738865438709,-500.0,0.00013698,2]
[351971429,1738865438719,-500.0,0.00013698,2]
[351971431,1738865438729,-246.04762436,0.00013698,2]
[351971433,1738865438738,-500.0,0.00013698,2]
[351971435,1738865438749,-500.0,0.00013698,2]
[351971437,1738865438758,-247.76915764,0.00013698,2]
[351971439,1738865438768,-197.08290386,0.00013698,2]
[351971441,1738865438780,-500.0,0.00013698,2]
[351971443,1738865438790,-500.0,0.00013698,2]
[351971445,1738865438800,-500.0,0.00013698,2]
[351971447,1738865438810,-500.0,0.00013698,2]
[351971449,1738865438820,-500.0,0.00013698,2]
[351971451,1738865438829,-500.0,0.00013698,2]
[351971453,1738865438839,-376.42416754,0.00013698,2]
[351971455,1738865438848,-500.0,0.00013698,2]
[351971457,1738865438858,-500.0,0.00013698,2]
[351971459,1738865438868,-500.0,0.00013698,2]
[351971461,1738865438877,-500.0,0.00013698,2]
[351971463,1738865438888,-500.0,0.00013698,2]
[351971465,1738865438898,-501.97750427,0.00013698,2]
[351971467,1738865438907,-500.0,0.00013698,2]
[351971469,1738865438916,-500.0,0.00013698,2]
[351971471,1738865438927,-500.0,0.00013698,2]
[351971473,1738865438936,-500.0,0.00013698,2]
[351971475,1738865438946,-500.0,0.00013698,2]
[351971477,1738865438956,-507.58336797,0.00013698,2]
[351971479,1738865438965,-500.0,0.00013698,2]
[351971481,1738865438975,-500.0,0.00013698,2]
[351971483,1738865438984,-500.0,0.00013698,2]
[351971485,1738865438994,-308.5267888,0.00013698,2]
[351971487,1738865439003,-500.0,0.00013698,2]
[351971489,1738865439012,-500.0,0.00013698,2]
[351971491,1738865439024,-500.0,0.00013698,2]
[351971493,1738865439034,-500.0,0.00013698,2]
[351971495,1738865439043,-238.40452934,0.00013698,2]
[351971497,1738865439053,-500.0,0.00013698,2]
[351971499,1738865439063,-500.0,0.00013698,2]
[351971501,1738865439073,-500.0,0.00013698,2]
[351971503,1738865439083,-529.88981495,0.00013698,2]
[351971505,1738865439092,-500.0,0.00013698,2]
[351971507,1738865439102,-544.81791568,0.00013698,2]
[351971509,1738865439111,-500.0,0.00013698,2]
[351971511,1738865439121,-500.0,0.00013698,2]
[351971513,1738865439130,-500.0,0.00013698,2]
[351971515,1738865439140,-500.0,0.00013698,2]
[351971517,1738865439149,-500.0,0.00013698,2]
[351971519,1738865439158,-500.0,0.00013698,2]
[351971521,1738865439168,-500.0,0.00013698,2]
[351971523,1738865439177,-500.0,0.00013698,2]
[351971525,1738865439187,-500.0,0.00013698,2]
[351971527,1738865439196,-500.0,0.00013698,2]
[351971529,1738865439206,-500.0,0.00013698,2]
[351971531,1738865439216,-423.43575747,0.00013698,2]
[351971533,1738865439226,-500.0,0.00013698,2]
[351971535,1738865439236,-500.0,0.00013698,2]
[351971537,1738865439246,-500.0,0.00013698,2]
[351971539,1738865439255,-500.0,0.00013698,2]
[351971541,1738865439266,-500.0,0.00013698,2]
[351971543,1738865439277,-500.0,0.00013698,2]
[351971545,1738865439287,-500.0,0.00013698,2]
[351971547,1738865439297,-500.0,0.00013698,2]
[351971549,1738865439307,-500.0,0.00013698,2]
[351971551,1738865439318,-500.0,0.00013698,2]
[351971570,1738865439498,-500.0,0.00013698,2]
[351971572,1738865439509,-500.0,0.00013698,2]
[351971574,1738865439519,-500.0,0.00013698,2]
[351971576,1738865439532,-680.93,0.00013698,2]
[351971578,1738865439542,-500.0,0.00013698,2]
[351971580,1738865439552,-500.0,0.00013698,2]
[351971582,1738865439562,-234.98057433,0.00013698,2]
[351971584,1738865439572,-500.0,0.00013698,2]
[351971586,1738865439582,-500.0,0.00013698,2]
[351971588,1738865439591,-500.0,0.00013698,2]
[351971590,1738865439601,-706.97,0.00013698,2]
[351971592,1738865439611,-300.684998,0.00013698,2]
[351971594,1738865439620,-513.44862881,0.00013698,2]
[351971596,1738865439630,-500.0,0.00013698,2]
[351971598,1738865439639,-500.0,0.00013698,2]
[351971600,1738865439648,-502.38039967,0.00013698,2]
[351971602,1738865439658,-500.0,0.00013698,2]
[351971604,1738865439669,-500.0,0.00013698,2]
[351971606,1738865439679,-500.0,0.00013698,2]
[351971608,1738865439689,-500.0,0.00013698,2]
[351971610,1738865439699,-500.0,0.00013698,2]
[351971612,1738865439709,-500.0,0.00013698,2]
[351971614,1738865439719,-515.63393805,0.00013698,2]
[351971616,1738865439729,-500.0,0.00013698,2]
[351971618,1738865439738,-500.0,0.00013698,2]
[351971620,1738865439748,-500.0,0.00013698,2]
[351971622,1738865439758,-544.67,0.00013698,2]
[351971624,1738865439769,-500.0,0.00013698,2]
[351971627,1738865439781,-500.0,0.00013698,2]
[351971628,1738865439791,-500.0,0.00013698,2]
[351971630,1738865439801,-831.64,0.00013698,2]
[351971632,1738865439810,-500.0,0.00013698,2]
[351971634,1738865439820,-500.0,0.00013698,2]
[351971636,1738865439829,-500.0,0.00013698,2]
[351971638,1738865439839,-500.0,0.00013698,2]
[351971640,1738865439848,-500.0,0.00013698,2]
[351971642,1738865439858,-500.0,0.00013698,2]
[351971644,1738865439867,-500.0,0.00013698,2]
[351971646,1738865439877,-500.0,0.00013698,2]
[351971648,1738865439887,-500.0,0.00013698,2]
[351971650,1738865439896,-500.0,0.00013698,2]
[351971652,1738865439906,-402.56008187,0.00013698,2]
[351971654,1738865439915,-500.0,0.00013698,2]
[351971656,1738865439925,-500.0,0.00013698,2]
[351971658,1738865439935,-500.0,0.00013698,2]
[351971660,1738865439945,-500.0,0.00013698,2]
[351971662,1738865439955,-500.0,0.00013698,2]
[351971664,1738865439965,-507.73494904,0.00013698,2]
[351971666,1738865439975,-500.0,0.00013698,2]
[351971668,1738865439984,-500.0,0.00013698,2]
[351971670,1738865439994,-500.0,0.00013698,2]
[351971672,1738865440004,-500.77059866,0.00013698,2]
[351971674,1738865440014,-500.0,0.00013698,2]
[351971676,1738865440027,-500.0,0.00013698,2]
[351971678,1738865440036,-501.76063259,0.00013698,2]
[351971680,1738865440046,-500.0,0.00013698,2]
[351971682,1738865440055,-500.0,0.00013698,2]
[351971684,1738865440067,-553.0469861,0.00013698,2]
[351971686,1738865440077,-500.0,0.00013698,2]
[351971688,1738865440087,-500.0,0.00013698,2]
[351971690,1738865440096,-505.00035132,0.00013698,2]
[351971693,1738865440106,-500.0,0.00013698,2]
[351971695,1738865440115,-500.0,0.00013698,2]
[351971697,1738865440125,-500.0,0.00013698,2]
[351971698,1738865440134,-500.0,0.00013698,2]
[351971701,1738865440144,-500.0,0.00013698,2]
[351971702,1738865440154,-500.0,0.00013698,2]
[351971704,1738865440163,-500.0,0.00013698,2]
[351971707,1738865440174,-500.0,0.00013698,2]
[351971709,1738865440183,-504.09521643,0.00013698,2]
[351971711,1738865440193,-500.0,0.00013698,2]
[351971712,1738865440202,-500.0,0.00013698,2]
[351971714,1738865440212,-500.0,0.00013698,2]
[351971716,1738865440222,-500.0,0.00013698,2]
[351971719,1738865440233,-500.0,0.00013698,2]
[351971721,1738865440243,-500.0,0.00013698,2]
[351971723,1738865440253,-660.66,0.00013698,2]
[351971725,1738865440262,-500.0,0.00013698,2]
[351971727,1738865440273,-500.0,0.00013698,2]
[351971728,1738865440283,-500.0,0.00013698,2]
[351971729,1738865440294,-500.0,0.00013698,2]
[351971730,1738865440304,-500.0,0.00013698,2]
[351971731,1738865440314,-500.0,0.00013698,2]
[351971732,1738865440324,-500.0,0.00013698,2]
[351971733,1738865440334,-500.0,0.00013698,2]
[351971735,1738865440343,-500.0,0.00013698,2]
[351971737,1738865440353,-339.75689561,0.00013698,2]
[351971739,1738865440363,-500.0,0.00013698,2]
[351971741,1738865440373,-500.0,0.00013698,2]
[351971743,1738865440385,-500.0,0.00013698,2]
[351971745,1738865440397,-500.0,0.00013698,2]
[351971747,1738865440407,-500.0,0.00013698,2]
[351971749,1738865440417,-500.0,0.00013698,2]
[351971751,1738865440427,-506.24,0.00013698,2]
[351971753,1738865440436,-500.0,0.00013698,2]
[351971755,1738865440446,-500.0,0.00013698,2]
[351971757,1738865440456,-500.0,0.00013698,2]
[351971759,1738865440466,-500.0,0.00013698,2]
[351971761,1738865440476,-500.0,0.00013698,2]
[351971763,1738865440487,-500.0,0.00013698,2]
[351971765,1738865440496,-500.0,0.00013698,2]
[351971767,1738865440505,-500.0,0.00013698,2]
[351971769,1738865440515,-494.39543371,0.00013698,2]
[351971771,1738865440526,-500.0,0.00013698,2]
[351971773,1738865440535,-500.0,0.00013698,2]
[351971775,1738865440544,-500.0,0.00013698,2]
[351971777,1738865440554,-500.0,0.00013698,2]
[351971779,1738865440563,-500.0,0.00013698,2]
[351971781,1738865440573,-500.0,0.00013698,2]
[351971784,1738865440583,-500.0,0.00013698,2]
[351971785,1738865440592,-513.85094787,0.00013698,2]
[351971788,1738865440602,-500.0,0.00013698,2]
[351971789,1738865440611,-500.0,0.00013698,2]
[351971791,1738865440620,-500.0,0.00013698,2]
[351971794,1738865440630,-638.32258185,0.00013698,2]
[351971796,1738865440639,-500.0,0.00013698,2]
[351971797,1738865440648,-512.72772952,0.00013698,2]
[351971799,1738865440658,-500.0,0.00013698,2]
[351971801,1738865440668,-500.0,0.00013698,2]
[351971803,1738865440677,-500.0,0.00013698,2]
[351971806,1738865440687,-419.80716015,0.00013698,2]
[351971808,1738865440696,-500.0,0.00013698,2]
[351971810,1738865440706,-510.13449862,0.00013698,2]
[351971812,1738865440715,-500.0,0.00013698,2]
[351971814,1738865440724,-608.74,0.00013698,2]
[351971816,1738865440734,-500.0,0.00013698,2]
[351971817,1738865440743,-243.79489024,0.00013698,2]
[351971820,1738865440752,-500.0,0.00013698,2]
[351971821,1738865440762,-500.0,0.00013698,2]
[351971824,1738865440773,-500.0,0.00013698,2]
[351971826,1738865440783,-500.0,0.00013698,2]
[351971827,1738865440792,-500.0,0.00013698,2]
[351971830,1738865440801,-500.0,0.00013698,2]
[351971832,1738865440811,-500.0,0.00013698,2]
[351971834,1738865440821,-500.0,0.00013698,2]
[351971836,1738865440830,-506.38282874,0.00013698,2]
[351971838,1738865440839,-469.67627211,0.00013698,2]
[351971840,1738865440848,-504.23295535,0.00013698,2]
[351971842,1738865440857,-500.0,0.00013698,2]
[351971843,1738865440867,-500.0,0.00013698,2]
[351971846,1738865440876,-500.0,0.00013698,2]
[351971848,1738865440885,-500.0,0.00013698,2]
[351971850,1738865440895,-503.73902806,0.00013698,2]
[351971852,1738865440904,-500.0,0.00013698,2]
[351971853,1738865440913,-500.0,0.00013698,2]
[351971856,1738865440923,-500.0,0.00013698,2]
[351971858,1738865440932,-500.0,0.00013698,2]
[351971859,1738865440941,-500.0,0.00013698,2]
[351971861,1738865440951,-500.0,0.00013698,2]
[351971864,1738865440960,-500.0,0.00013698,2]
[351971865,1738865440970,-500.0,0.00013698,2]
[351971868,1738865440979,-500.0,0.00013698,2]
[351971870,1738865440989,-500.0,0.00013698,2]
[351971872,1738865440998,-702.35,0.00013698,2]
[351971874,1738865441008,-500.0,0.00013698,2]
[351971876,1738865441017,-500.0,0.00013698,2]
[351971878,1738865441028,-500.0,0.00013698,2]
[351971880,1738865441038,-500.0,0.00013698,2]
[351971882,1738865441048,-500.0,0.00013698,2]
[351971884,1738865441057,-500.0,0.00013698,2]
[351971886,1738865441066,-500.0,0.00013698,2]
[351971888,1738865441075,-628.12,0.00013698,2]
[351971889,1738865441086,-500.0,0.00013698,2]
[351971891,1738865441096,-500.0,0.00013698,2]
[351971894,1738865441105,-500.0,0.00013698,2]
[351971896,1738865441115,-411.25646923,0.00013698,2]
[351971898,1738865441124,-658.85,0.00013698,2]
[351971900,1738865441133,-500.0,0.00013698,2]
[351971902,1738865441143,-500.0,0.00013698,2]
[351971903,1738865441152,-1444.07,0.00013698,2]
[351971906,1738865441161,-500.0,0.00013698,2]
[351971908,1738865441171,-507.14685443,0.00013698,2]
[351971909,1738865441180,-500.0,0.00013698,2]
[351971912,1738865441191,-4467.92,0.00013698,2]
[351971914,1738865441201,-500.0,0.00013698,2]
[351971916,1738865441211,-500.0,0.00013698,2]
[351971918,1738865441220,-500.0,0.00013698,2]
[351971919,1738865441229,-500.0,0.00013698,2]
[351971921,1738865441238,-504.62297565,0.00013698,2]
[351971924,1738865441248,-500.0,0.00013698,2]
[351971926,1738865441258,-500.0,0.00013698,2]
[351971927,1738865441268,-555.91465726,0.00013698,2]
[351971930,1738865441280,-504.68247216,0.00013698,2]
[351971932,1738865441291,-575.96,0.00013698,2]
[351971934,1738865441301,-500.0,0.00013698,2]
[351971936,1738865441310,-503.72097527,0.00013698,2]
[351971938,1738865441320,-500.0,0.00013698,2]
[351971940,1738865441329,-369.46,0.00013698,2]